bitfinex/quotes_SOLUSD_20250928
["timestamp","ask_amount","ask_price","bid_price","bid_amount"]
[1759101969037,36.98,210.43,210.42,0.66]
[1759101970641,13.59559401,210.47,210.43,4.75217411]
[1759101970867,36.96,210.45,210.43,5.41217411]
[1759101972349,36.96,210.45,210.44,0.72]
[1759101973650,36.96,210.45,210.44,5.47194829]
[1759101973862,36.96,210.45,210.44,4.75194829]
[1759101975647,28.36966805,210.51,210.44,17.35181903]
[1759101975648,13.59559401,210.5,210.44,17.35181903]
[1759101975846,36.96,210.49,210.45,0.72]
[1759101976058,36.96,210.49,210.44,16.63181903]
[1759101976370,36.96,210.49,210.46,0.72]
[1759101976865,13.59559401,210.51,210.47,5.47127096]
[1759101977048,36.96,210.5,210.48,0.72]
[1759101978568,36.96,210.5,210.49,4.75081951]
[1759101979667,36.96,210.5,210.49,5.47081951]
[1759101980049,146.39559401,210.54,210.49,17.3478683]
[1759101980050,36.96,210.52,210.49,17.3478683]
[1759101980245,36.96,210.52,210.5,0.72]
[1759101980642,26.0,210.56,210.51,17.33628853]
[1759101980967,40.39111245,210.55,210.51,16.62628853]
[1759101981153,3.43111245,210.54,210.51,17.33628853]
[1759101981354,36.96,210.55,210.51,5.46036815]
[1759101981567,3.4307199,210.54,210.51,5.46036815]
[1759101981875,36.96,210.55,210.51,5.46036815]
[1759101982177,3.4307199,210.54,210.51,5.46036815]
[1759101982352,36.96,210.55,210.51,5.46036815]
[1759101982672,3.43034867,210.54,210.53,4.74991687]
[1759101984757,3.43034867,210.54,210.52,4.7501425]
[1759101984963,36.96,210.55,210.52,4.7501425]
[1759101985171,36.96,210.55,210.52,5.4601425]
[1759101985476,3.42928959,210.54,210.53,0.71]
[1759101985779,3.42928959,210.54,210.52,4.7501425]
[1759101986081,36.96,210.55,210.52,5.4601425]
[1759101986285,3.42879457,210.54,210.52,4.7501425]
[1759101986582,0.5,210.53,210.48,0.71]
[1759101986777,13.59559401,210.51,210.46,4.75149672]
[1759101987078,0.5,210.5,210.46,4.25149672]
[1759101987385,36.96,210.49,210.46,4.25149672]
[1759101987879,36.96,210.5,210.47,0.71]
[1759101988265,36.96,210.5,210.48,0.71]
[1759101988674,36.96,210.5,210.46,16.13023852]
[1759101988870,36.96,210.5,210.48,4.75104522]
[1759101989185,13.59559401,210.52,210.48,5.46104522]
[1759101989365,40.39014001,210.51,210.48,5.46104522]
[1759101989568,36.96,210.51,210.48,5.46104522]
[1759101990566,36.96,210.51,210.48,4.75104522]
[1759101991486,3.43068303,210.5,210.47,4.75127096]
[1759101991787,36.96,210.51,210.47,4.75127096]
[1759101991986,3.43059077,210.5,210.47,4.75127096]
[1759101992173,37.46,210.51,210.47,4.75127096]
[1759101992372,3.43075713,210.5,210.47,4.75127096]
[1759101992569,37.46,210.51,210.47,4.75127096]
[1759101992885,3.43075718,210.5,210.47,4.75127096]
[1759101993079,37.46,210.51,210.47,4.75127096]
[1759101993283,3.43087341,210.5,210.47,4.75127096]
[1759101993577,37.46,210.51,210.47,4.75127096]
[1759101993886,3.43085991,210.5,210.48,0.71]
[1759101994064,36.96,210.51,210.48,0.71]
[1759101994264,3.43097919,210.5,210.48,0.71]
[1759101994466,36.96,210.51,210.48,0.71]
[1759101994684,3.4309191,210.5,210.48,0.71]
[1759101994883,36.96,210.51,210.49,4.75081951]
[1759101995066,3.43091905,210.5,210.49,4.75081951]
[1759101995272,3.43091905,210.5,210.46,5.46149672]
[1759101995477,0.5,210.5,210.46,4.75149672]
[1759101995673,36.96,210.51,210.46,5.46149672]
[1759101995870,3.43101802,210.5,210.46,5.46149672]
[1759101996075,37.46,210.51,210.46,5.46149672]
[1759101996275,3.43114312,210.5,210.46,5.46149672]
[1759101996475,37.46,210.51,210.46,5.46149672]
[1759101996677,3.43113019,210.5,210.47,0.71]
[1759101996880,36.96,210.51,210.48,4.75104522]
[1759101997077,3.43113024,210.5,210.48,4.75104522]
[1759101997278,36.96,210.51,210.48,4.75104522]
[1759101997493,3.43125417,210.5,210.48,4.75104522]
[1759101997793,36.96,210.51,210.48,4.75104522]
[1759101997995,3.43125417,210.5,210.48,4.75104522]
[1759101998189,36.96,210.51,210.48,4.75104522]
[1759101998380,3.43138254,210.5,210.48,4.75104522]
[1759101998585,36.96,210.51,210.48,4.75104522]
[1759101998784,3.43139401,210.5,210.48,4.75104522]
[1759101999095,36.96,210.51,210.48,4.75104522]
[1759101999294,3.43152369,210.5,210.48,4.75104522]
[1759101999496,36.96,210.51,210.48,4.75104522]
[1759101999694,3.43151798,210.5,210.43,11.87993414]
[1759101999878,0.5,210.5,210.43,11.87993414]
[1759102000177,0.5,210.5,210.44,0.71]
[1759102000697,36.96,210.51,210.44,0.71]
[1759102000998,3.43172574,210.5,210.44,0.71]
[1759102001183,36.96,210.51,210.45,16.63102873]
[1759102001384,3.43195326,210.5,210.45,17.34102873]
[1759102001587,36.96,210.51,210.46,0.71]
[1759102001784,3.43195331,210.5,210.46,0.71]
[1759102001988,37.46,210.51,210.46,0.71]
[1759102002303,3.43195341,210.5,210.46,0.71]
[1759102002483,37.46,210.51,210.46,0.71]
[1759102002669,3.4322458,210.5,210.46,0.71]
[1759102002870,37.46,210.51,210.46,0.71]
[1759102003073,3.43225107,210.5,210.46,0.71]
[1759102003374,37.46,210.51,210.47,4.75127096]
[1759102003695,3.43252798,210.5,210.47,4.75127096]
[1759102003878,3.43251756,210.49,210.47,4.75127096]
[1759102004079,37.46,210.51,210.47,4.75127096]
[1759102004295,3.43265269,210.5,210.47,4.75127096]
[1759102004480,3.43265269,210.49,210.47,4.75127096]
[1759102004680,37.46,210.51,210.47,4.75127096]
[1759102004881,3.43282286,210.5,210.47,4.75127096]
[1759102005080,37.46,210.51,210.47,4.75127096]
[1759102005081,3.43282286,210.49,210.47,4.75127096]
[1759102005290,37.46,210.51,210.47,4.75127096]
[1759102005593,3.43294947,210.5,210.47,4.75127096]
[1759102005787,3.43294947,210.49,210.47,4.75127096]
[1759102006000,36.96,210.51,210.48,0.71]
[1759102006195,3.43305093,210.5,210.48,0.71]
[1759102006506,3.43317927,210.49,210.48,0.71]
[1759102006801,3.43317927,210.49,210.45,11.87930624]
[1759102007003,36.96,210.51,210.45,11.87930624]
[1759102007178,3.43317908,210.5,210.45,11.87930624]
[1759102007380,3.43317908,210.49,210.46,0.71]
[1759102007579,36.96,210.51,210.46,0.71]
[1759102007792,3.43331185,210.5,210.46,0.71]
[1759102007979,3.43331185,210.49,210.47,4.75127096]
[1759102008184,36.94,210.5,210.48,0.71]
[1759102008414,3.4333691,210.49,210.48,0.71]
[1759102008901,3.4333691,210.49,210.46,0.71]
[1759102009103,36.94,210.5,210.47,0.71]
[1759102009307,3.43347788,210.49,210.47,0.71]
[1759102009508,36.94,210.5,210.47,0.71]
[1759102009699,3.43347783,210.49,210.47,0.71]
[1759102009899,36.94,210.5,210.47,0.71]
[1759102010079,3.43347783,210.49,210.48,4.75104522]
[1759102011008,3.43347783,210.49,210.45,11.87930624]
[1759102011208,36.94,210.5,210.46,0.72]
[1759102011408,3.43371138,210.49,210.46,0.72]
[1759102011601,36.94,210.5,210.47,0.72]
[1759102011900,3.43371133,210.49,210.47,0.72]
[1759102012209,36.94,210.5,210.48,4.75104522]
[1759102012384,3.43420351,210.49,210.48,4.75104522]
[1759102013717,3.43420351,210.49,210.48,0.72]
[1759102013894,40.14425932,210.53,210.48,0.72]
[1759102014202,3.43475889,210.52,210.48,0.72]
[1759102014406,3.43475889,210.51,210.48,0.72]
[1759102014591,3.43475889,210.5,210.48,0.72]
[1759102014788,40.14425932,210.53,210.49,4.75081951]
[1759102015116,3.43522902,210.52,210.5,0.72]
[1759102015312,3.43522902,210.51,210.5,0.72]
[1759102015511,3.43522902,210.51,210.49,4.75081951]
[1759102015714,3.43522902,210.5,210.49,4.75081951]
[1759102016220,3.43522902,210.5,210.49,5.47081951]
[1759102016534,36.94,210.53,210.49,5.47081951]
[1759102016747,3.43611359,210.52,210.49,17.3478683]
[1759102017025,3.43611359,210.51,210.5,0.72]
[1759102017210,3.43611359,210.51,210.49,16.6278683]
[1759102017522,36.94,210.53,210.49,16.6278683]
[1759102017722,3.43636276,210.52,210.49,16.6278683]
[1759102017923,36.94,210.53,210.51,4.75036815]
[1759102018222,3.43636281,210.52,210.51,5.47036815]
[1759102019012,3.43636281,210.52,210.49,16.6278683]
[1759102019320,3.43636281,210.51,210.48,5.4710258]
[1759102019517,3.43636281,210.5,210.48,5.4710258]
[1759102019720,37.44,210.53,210.48,5.4710258]
[1759102020111,3.43691434,210.52,210.48,5.4710258]
[1759102020425,3.43691434,210.51,210.49,0.72]
[1759102020722,36.94,210.53,210.5,2.0]
[1759102020908,3.43734024,210.52,210.5,2.0]
[1759102021109,3.43734024,210.51,210.5,6.75059382]
[1759102021606,3.43734024,210.51,210.5,7.47059382]
[1759102021926,3.43734024,210.51,210.5,6.75059382]
[1759102022144,17.53293425,210.51,210.5,2.0]
[1759102022434,17.53293425,210.51,210.5,1.9]
[1759102022435,22.2833024,210.51,210.5,1.9]
[1759102022634,51.48858108,210.51,210.5,1.9]
[1759102022932,13.59559401,210.44,210.38,0.72]
[1759102023102,40.35734024,210.43,210.39,4.95307334]
[1759102023303,37.32,210.43,210.39,4.95307334]
[1759102023513,36.92,210.43,210.39,4.95307334]
[1759102023719,36.92,210.43,210.39,5.67307334]
[1759102024418,36.92,210.43,210.4,0.72]
[1759102025316,36.92,210.43,210.41,4.75262582]
[1759102025903,1.51598454,210.47,210.42,0.72]
[1759102026215,53.94885174,210.46,210.43,0.72]
[1759102026522,3.43325773,210.45,210.41,17.35419038]
[1759102026725,50.51559401,210.46,210.42,0.72]
[1759102027017,3.43287536,210.45,210.42,0.72]
[1759102027220,0.4,210.45,210.41,4.75262582]
[1759102027605,3.832575,210.44,210.41,4.75262582]
[1759102027817,36.92,210.43,210.41,4.75262582]
[1759102029522,36.92,210.43,210.41,0.72]
[1759102029828,36.92,210.43,210.4,16.63498098]
[1759102029829,36.92,210.43,210.42,0.72]
[1759102030035,26.0,210.48,210.42,0.72]
[1759102030340,36.92,210.47,210.42,0.72]
[1759102030698,36.92,210.47,210.4,16.63498098]
[1759102031004,13.59559401,210.46,210.41,0.72]
[1759102031201,13.99559401,210.46,210.4,4.75285171]
[1759102031625,0.4,210.45,210.4,4.75285171]
[1759102031801,37.32,210.44,210.4,4.75285171]
[1759102032414,13.99559401,210.43,210.4,4.75285171]
[1759102032912,13.59559401,210.43,210.4,4.75285171]
[1759102034224,36.92,210.43,210.41,0.66]
[1759102034926,36.92,210.43,210.4,16.63498098]
[1759102035832,36.92,210.43,210.4,17.29498098]
[1759102036910,36.92,210.43,210.4,4.75285171]
[1759102037740,36.92,210.43,210.4,5.41285171]
[1759102038230,36.92,210.43,210.4,4.75285171]
[1759102038408,37.32,210.43,210.4,4.75285171]
[1759102038931,36.92,210.43,210.4,4.75285171]
[1759102039732,0.4,210.42,210.4,4.75285171]
[1759102040026,36.92,210.43,210.4,4.75285171]
[1759102040531,36.42,210.43,210.4,5.41285171]
[1759102042109,36.42,210.43,210.4,4.75285171]
[1759102043315,36.92,210.42,210.4,4.75285171]
[1759102044632,36.92,210.42,210.4,5.44285171]
[1759102046023,13.59559401,210.45,210.41,0.69]
[1759102046247,36.92,210.44,210.42,0.69]
[1759102047133,50.51559401,210.44,210.43,4.75217411]
[1759102047547,50.51559401,210.44,210.41,4.7524403]
[1759102048832,50.51559401,210.44,210.41,5.4424403]
[1759102053333,13.59559401,210.44,210.41,5.4424403]
[1759102053528,36.9,210.43,210.41,5.4424403]
[1759102053738,36.9,210.43,210.4,16.63498098]
[1759102053939,37.3,210.43,210.4,4.75285171]
[1759102054731,36.9,210.43,210.4,4.75285171]
[1759102055026,36.9,210.43,210.4,5.44285171]
[1759102055432,36.9,210.43,210.41,0.69]
[1759102055950,36.9,210.43,210.42,4.75239996]
[1759102058454,13.59559401,210.44,210.41,4.75262582]
[1759102058649,36.9,210.43,210.41,5.44262582]
[1759102060454,16.83211662,210.55,210.4,16.63498098]
[1759102060640,50.49559401,210.48,210.42,0.69]
[1759102060846,36.9,210.47,210.42,0.69]
[1759102061237,26.0,210.5,210.42,0.69]
[1759102061547,36.9,210.48,210.42,14.98422275]
[1759102061746,36.9,210.48,210.43,0.69]
[1759102062639,36.9,210.51,210.44,16.63181903]
[1759102062837,36.9,210.51,210.45,0.69]
[1759102063441,13.59559401,210.5,210.45,0.69]
[1759102063644,36.9,210.49,210.44,16.63181903]
[1759102063840,0.4,210.48,210.44,16.63181903]
[1759102064038,36.9,210.47,210.44,16.63181903]
[1759102064659,36.9,210.47,210.44,11.87987074]
[1759102065571,36.9,210.47,210.42,4.75238438]
[1759102066062,36.9,210.47,210.42,5.44238438]
[1759102066451,36.9,210.47,210.42,16.63338428]
[1759102066651,36.9,210.47,210.43,0.69]
[1759102066839,36.9,210.47,210.44,4.75194829]
[1759102067263,36.9,210.47,210.44,5.44194829]
[1759102067654,36.9,210.47,210.41,4.75262582]
[1759102067853,36.9,210.47,210.42,0.69]
[1759102068249,36.9,210.47,210.41,16.63419038]
[1759102068454,36.9,210.47,210.43,0.69]
[1759102068656,39.59559401,210.47,210.43,0.69]
[1759102068855,36.9,210.46,210.43,0.69]
[1759102069053,1.51598454,210.5,210.4,14.29490387]
[1759102069054,132.8,210.53,210.44,5.44194829]
[1759102069260,40.50758243,210.52,210.45,0.69]
[1759102069460,16.80317644,210.51,210.45,0.69]
[1759102069660,13.59559401,210.49,210.44,4.75194829]
[1759102069872,36.9,210.48,210.44,5.44194829]
[1759102070080,36.9,210.48,210.45,0.69]
[1759102070380,36.9,210.48,210.44,4.75194829]
[1759102070667,13.59559401,210.49,210.45,0.69]
[1759102071174,13.59559401,210.49,210.46,4.75149672]
[1759102071382,36.9,210.5,210.47,0.68]
[1759102072248,0.4,210.49,210.46,4.75149672]
[1759102073272,0.4,210.49,210.45,4.75172249]
[1759102073459,13.99559401,210.49,210.45,4.75172249]
[1759102073660,13.59559401,210.49,210.45,4.75172249]
[1759102073858,13.59559401,210.49,210.45,5.43172249]
[1759102074350,13.59559401,210.49,210.44,4.75194829]
[1759102074550,13.99559401,210.48,210.44,4.75194829]
[1759102074848,37.28,210.47,210.44,4.75194829]
[1759102075356,13.59559401,210.46,210.44,4.75194829]
[1759102076174,13.99559401,210.46,210.42,4.75239996]
[1759102076365,13.59559401,210.46,210.42,4.75239996]
[1759102076687,13.59559401,210.46,210.42,5.43239996]
[1759102078054,13.99559401,210.46,210.42,4.75239996]
[1759102079259,13.59559401,210.46,210.4,5.43281781]
[1759102079476,0.4,210.45,210.4,4.75281781]
[1759102079677,37.28,210.44,210.4,4.75281781]
[1759102079888,36.88,210.44,210.4,5.43281781]
[1759102080580,36.88,210.44,210.41,0.68]
[1759102081678,36.88,210.44,210.4,4.75281781]
[1759102081861,36.88,210.44,210.4,5.43281781]
[1759102082262,37.28,210.44,210.4,4.75281781]
[1759102082975,13.99559401,210.43,210.39,4.95298296]
[1759102083577,13.59559401,210.43,210.39,5.63298296]
[1759102084583,26.0,210.46,210.4,0.68]
[1759102084791,50.47559401,210.45,210.4,0.68]
[1759102084979,2.36929746,210.47,210.4,0.68]
[1759102085175,50.47559401,210.46,210.4,0.68]
[1759102085375,36.88,210.46,210.4,0.68]
[1759102085580,36.88,210.46,210.41,14.29626629]
[1759102085777,36.88,210.46,210.42,0.68]
[1759102086477,36.88,210.46,210.43,4.75217411]
[1759102086681,36.88,210.46,210.44,0.68]
[1759102087277,36.88,210.47,210.45,0.68]
[1759102087482,36.88,210.47,210.43,5.43217411]
[1759102087682,36.88,210.47,210.44,0.68]
[1759102087880,36.88,210.47,210.45,0.68]
[1759102089168,13.59559401,210.48,210.43,11.88043529]
[1759102089373,36.88,210.47,210.44,0.68]
[1759102089672,36.88,210.47,210.45,0.68]
[1759102089879,36.88,210.47,210.46,4.75149672]
[1759102090274,2.36929746,210.51,210.46,17.31023852]
[1759102090474,50.47559401,210.5,210.47,0.68]
[1759102090788,36.88,210.49,210.47,0.68]
[1759102090984,13.59559401,210.5,210.47,0.68]
[1759102091294,13.59559401,210.51,210.47,0.68]
[1759102091479,36.88,210.5,210.47,0.68]
[1759102091993,36.88,210.5,210.48,4.75104522]
[1759102092370,13.59559401,210.53,210.49,0.66]
[1759102092572,50.47559401,210.53,210.48,16.62865829]
[1759102092765,50.47559401,210.53,210.49,0.66]
[1759102093192,0.4,210.52,210.48,16.62865829]
[1759102093368,50.47559401,210.53,210.48,17.28865829]
[1759102093568,50.87559401,210.53,210.48,17.28865829]
[1759102094271,13.59559401,210.58,210.49,0.66]
[1759102094482,13.59559401,210.56,210.49,0.66]
[1759102094796,13.59559401,210.56,210.49,14.95013743]
[1759102095089,13.59559401,210.56,210.5,0.66]
[1759102095792,13.59559401,210.56,210.5,14.95013742]
[1759102096296,13.59559401,210.56,210.51,4.75036815]
[1759102096473,13.99559401,210.56,210.51,5.41036815]
[1759102096670,13.59559401,210.56,210.52,0.66]
[1759102096893,13.99559401,210.56,210.51,16.62628853]
[1759102097098,13.99559401,210.56,210.51,17.28628853]
[1759102097567,0.4,210.55,210.51,4.75036815]
[1759102097770,49.95559401,210.54,210.51,4.75036815]
[1759102098073,49.95559401,210.54,210.5,4.75059382]
[1759102098471,0.4,210.6,210.51,0.66]
[1759102098666,36.34,210.59,210.51,0.66]
[1759102099003,2.36929746,210.61,210.51,0.66]
[1759102099297,36.86,210.6,210.51,0.66]
[1759102100282,36.86,210.61,210.53,26.0]
[1759102100469,36.86,210.64,210.54,0.66]
[1759102100882,36.86,210.64,210.55,14.28401381]
[1759102101188,36.86,210.64,210.56,0.7]
[1759102101398,13.59559401,210.63,210.56,0.7]
[1759102102303,0.4,210.62,210.57,4.74901457]
[1759102102598,13.59559401,210.6,210.56,4.7491462]
[1759102102766,0.4,210.59,210.56,4.7491462]
[1759102103173,36.86,210.6,210.56,4.7491462]
[1759102103494,13.99559401,210.59,210.5,11.87612581]
[1759102103800,13.59559401,210.57,210.51,4.75036815]
[1759102104094,13.59559401,210.55,210.51,4.75036815]
[1759102104270,13.59559401,210.55,210.5,11.87612581]
[1759102104467,13.59559401,210.55,210.5,0.7]
[1759102104690,13.99559401,210.55,210.49,4.75081951]
[1759102105391,13.59559401,210.55,210.49,17.3278683]
[1759102105690,13.59559401,210.55,210.5,0.7]
[1759102106574,13.59559401,210.55,210.51,4.75036815]
[1759102107281,13.59559401,210.55,210.52,0.7]
[1759102107688,13.59559401,210.55,210.51,16.62628853]
[1759102107888,13.59559401,210.55,210.51,17.32628853]
[1759102108295,36.84,210.54,210.51,17.32628853]
[1759102109392,36.84,210.54,210.51,16.62628853]
[1759102109596,36.84,210.54,210.51,17.32628853]
[1759102110391,36.84,210.54,210.51,16.62628853]
[1759102110592,36.84,210.54,210.5,4.75059382]
[1759102110788,36.84,210.54,210.5,5.45059382]
[1759102111780,36.84,210.54,210.51,0.7]
[1759102113699,28.36929746,210.57,210.52,0.7]
[1759102114000,36.84,210.55,210.53,4.74991687]
[1759102115880,36.84,210.55,210.52,16.62531847]
[1759102116082,36.84,210.55,210.52,17.32531847]
[1759102116901,36.84,210.55,210.52,5.4501425]
[1759102117099,39.59559401,210.56,210.52,5.4501425]
[1759102117304,36.84,210.55,210.52,5.4501425]
[1759102118003,36.84,210.55,210.52,4.7501425]
[1759102118389,2.76929746,210.54,210.51,4.75034191]
[1759102118986,36.84,210.53,210.51,4.75034191]
[1759102119598,2.36929746,210.54,210.52,0.7]
[1759102119804,36.84,210.53,210.52,0.7]
[1759102120106,36.84,210.53,210.52,5.4501425]
[1759102120685,2.36929746,210.54,210.52,4.7501425]
[1759102120917,2.36929746,210.54,210.52,5.4501425]
[1759102121299,39.20929746,210.54,210.52,5.4501425]
[1759102121809,39.20929746,210.54,210.51,11.87592038]
[1759102121986,39.20929746,210.54,210.51,12.57592038]
[1759102122387,36.84,210.54,210.51,12.57592038]
[1759102123803,36.84,210.54,210.51,16.62628853]
[1759102124781,36.84,210.54,210.51,17.32628853]
[1759102125211,36.84,210.54,210.52,0.7]
[1759102125614,36.84,210.54,210.51,12.57592038]
[1759102127418,36.84,210.54,210.53,4.74991687]
[1759102128107,37.24,210.54,210.53,4.74991687]
[1759102129002,36.84,210.54,210.53,4.74991687]
[1759102129199,36.84,210.54,210.51,11.87592038]
[1759102129405,36.84,210.54,210.5,4.75059382]
[1759102129607,2.76929746,210.53,210.5,4.75059382]
[1759102129910,13.59559401,210.52,210.5,4.75059382]
[1759102130108,36.84,210.51,210.5,4.75059382]
[1759102130993,36.84,210.51,210.48,11.87720404]
[1759102130994,36.84,210.51,210.48,16.62824926]
[1759102131194,36.84,210.51,210.48,4.75104522]
[1759102133301,36.84,210.51,210.48,5.47104522]
[1759102133797,36.84,210.51,210.49,0.72]
[1759102135223,36.84,210.51,210.47,0.72]
[1759102135416,36.84,210.51,210.48,0.72]
[1759102136620,13.59559401,210.56,210.49,0.72]
[1759102136917,13.59559401,210.54,210.49,0.72]
[1759102137619,36.84,210.55,210.5,16.62707838]
[1759102137919,36.84,210.55,210.51,0.72]
[1759102138221,36.84,210.55,210.52,0.72]
[1759102139102,36.84,210.55,210.53,4.74991687]
[1759102141125,37.24,210.55,210.52,4.7501425]
[1759102141622,0.4,210.54,210.52,4.7501425]
[1759102141923,37.22,210.53,210.51,4.75034166]
[1759102142226,50.41559401,210.52,210.51,4.75034166]
[1759102143219,50.41559401,210.52,210.47,11.87787866]
[1759102143404,50.41559401,210.52,210.48,0.72]
[1759102143605,36.82,210.52,210.48,0.72]
[1759102143926,36.82,210.52,210.49,0.72]
[1759102144136,36.82,210.52,210.5,0.72]
[1759102145727,36.82,210.52,210.48,0.72]
[1759102146309,36.82,210.52,210.49,0.72]
[1759102146828,36.82,210.52,210.48,0.72]
[1759102147528,36.82,210.52,210.49,0.72]
[1759102147718,36.82,210.52,210.5,4.75059382]
[1759102148334,36.82,210.51,210.5,4.75059382]
[1759102148740,36.82,210.51,210.48,4.75090012]
[1759102149116,36.82,210.51,210.48,17.34851319]
[1759102150047,36.82,210.51,210.48,11.87761307]
[1759102150408,36.82,210.51,210.48,12.59761307]
[1759102151024,36.82,210.51,210.48,11.87761307]
[1759102151230,36.82,210.51,210.49,0.72]
[1759102152330,36.82,210.51,210.5,4.75059382]
[1759102154636,36.82,210.51,210.49,4.75081951]
[1759102154933,36.82,210.51,210.49,5.43081951]
[1759102155132,26.0,210.58,210.49,5.43081951]
[1759102155133,0.4,210.59,210.5,0.68]
[1759102155334,50.41559401,210.58,210.5,0.68]
[1759102155519,50.41559401,210.58,210.51,5.27628562]
[1759102155721,52.33167371,210.58,210.52,0.68]
[1759102155922,51.93167371,210.58,210.52,0.68]
[1759102156730,51.93167371,210.58,210.53,16.62470906]
[1759102156937,51.93167371,210.58,210.54,0.68]
[1759102158816,1.5160797,210.55,210.5,0.68]
[1759102159033,1.5160797,210.52,210.49,16.6278683]
[1759102159235,36.82,210.51,210.49,16.6278683]
[1759102159436,36.82,210.51,210.5,0.68]
[1759102159823,36.82,210.51,210.49,16.6278683]
[1759102160529,36.82,210.51,210.49,11.87704879]
[1759102160732,36.82,210.51,210.48,4.75104522]
[1759102161132,36.82,210.51,210.48,5.46104522]
[1759102163648,36.82,210.51,210.48,17.33865829]
[1759102164739,36.82,210.51,210.49,0.71]
[1759102164943,36.82,210.51,210.5,0.71]
[1759102166246,36.8,210.53,210.5,0.71]
[1759102166431,36.8,210.53,210.51,0.71]
[1759102167848,0.4,210.59,210.52,0.71]
[1759102168027,37.2,210.58,210.52,0.71]
[1759102168233,50.79559401,210.57,210.5,14.99809564]
[1759102168432,36.8,210.56,210.5,0.71]
[1759102170138,36.8,210.56,210.51,16.62628853]
[1759102170328,4.00247818,210.63,210.52,0.71]
[1759102170655,36.8,210.63,210.52,0.71]
[1759102170851,13.59559401,210.62,210.53,5.37628562]
[1759102171043,36.8,210.61,210.54,0.71]
[1759102171244,13.59559401,210.63,210.54,0.71]
[1759102171555,36.8,210.62,210.54,0.71]
[1759102171743,36.8,210.62,210.55,13.59559401]
[1759102171948,36.8,210.62,210.56,0.71]
[1759102172138,36.8,210.62,210.57,16.62155101]
[1759102172345,36.8,210.62,210.58,0.71]
[1759102172748,36.8,210.62,210.59,0.71]
[1759102173057,36.8,210.62,210.57,17.33155101]
[1759102173237,36.8,210.62,210.58,0.71]
[1759102173433,0.4,210.64,210.59,0.71]
[1759102173647,13.59559401,210.64,210.6,0.71]
[1759102173956,36.8,210.64,210.6,0.71]
[1759102174448,36.8,210.64,210.61,16.61839418]
[1759102174648,36.8,210.64,210.62,0.71]
[1759102176261,36.8,210.64,210.61,16.61839418]
[1759102176262,0.1,210.66,210.63,17.32681621]
[1759102176441,36.9,210.66,210.63,17.32681621]
[1759102176848,36.9,210.66,210.63,16.61681621]
[1759102177556,36.9,210.66,210.63,11.86915444]
[1759102177749,0.1,210.66,210.63,11.86915444]
[1759102177955,36.9,210.66,210.63,11.86915444]
[1759102178846,36.9,210.66,210.64,0.71]
[1759102179164,0.1,210.66,210.64,0.71]
[1759102179344,0.1,210.66,210.61,11.86915444]
[1759102179657,0.1,210.66,210.62,0.71]
[1759102180966,0.1,210.66,210.64,4.74743638]
[1759102181166,0.1,210.66,210.65,0.71]
[1759102182750,0.1,210.66,210.65,5.45721101]
[1759102183459,0.1,210.66,210.65,4.74721101]
[1759102184642,0.1,210.66,210.64,5.45743638]
[1759102185549,0.1,210.66,210.65,0.71]
[1759102186649,0.1,210.66,210.65,5.45721101]
[1759102186853,0.1,210.66,210.65,4.74721101]
[1759102187764,0.1,210.66,210.64,4.74743638]
[1759102188069,0.1,210.66,210.64,5.45743638]
[1759102188842,0.1,210.66,210.65,0.71]
[1759102190468,0.1,210.66,210.65,5.45721101]
[1759102193173,1e-08,210.68,210.65,19.22913915]
[1759102193374,1e-08,210.68,210.66,0.72]
[1759102193771,1e-08,210.68,210.67,0.72]